Workbook

Sheet Vonios pertvarkymo išlaidos
B1: Vonios kambario pertvarkymo išlaidų darbalapis
B2: PASTABA. Lentelės skirtumo stulpeliai parodys, ar faktinė suma viršijo planuojamą sumą. Raudoni skaičiai nurodo didesnę nei planuotą sumą (neigiama reikšmė), o juodi skaičiai nurodo mažesnę nei planuotą sumą (teigiama reikšmė).
E3: Vieneto kaina (EUR) | H3: Bendra kaina (EUR)
B4: Sritis | C4: Prekės | D4: Kiekis | E4: Apytikslė | F4: Faktinė | G4: Skirtumas | H4: Apytikslė | I4: Faktinė | J4: Skirtumas
B5: Vonia / dušas | C5: Vonia, ketaus, 152 cm, standartinė | D5: 1 | E5: 250.00 EUR | F5: =RANDBETWEEN(E5+2,E5+20) -> 259.00 EUR | G5: =IFERROR(Išlaidos[[#This Row],[Apytikslė]]-Išlaidos[[#This Row],[Faktinė]], "") -> -9.00 EUR | H5: =IFERROR(Išlaidos[[#This Row],[Kiekis]]*Išlaidos[[#This Row],[Apytikslė]], "") -> 250.00 EUR | I5: =IFERROR(Išlaidos[[#This Row],[Kiekis]]*Išlaidos[[#This Row],[Faktinė]], "") -> 259.00 EUR | J5: =IFERROR(Išlaidos[[#This Row],[Apytikslė ]]-Išlaidos[[#This Row],[Faktinė ]], "") -> -9.00 EUR
B6: Vonia / dušas | C6: Dušo kabinos durys su vyriais, standartinės | D6: 1 | E6: 200.00 EUR | F6: 206.00 EUR | G6: =IFERROR(Išlaidos[[#This Row],[Apytikslė]]-Išlaidos[[#This Row],[Faktinė]], "") -> -6.00 EUR | H6: =IFERROR(Išlaidos[[#This Row],[Kiekis]]*Išlaidos[[#This Row],[Apytikslė]], "") -> 200.00 EUR | I6: =IFERROR(Išlaidos[[#This Row],[Kiekis]]*Išlaidos[[#This Row],[Faktinė]], "") -> 206.00 EUR | J6: =IFERROR(Išlaidos[[#This Row],[Apytikslė ]]-Išlaidos[[#This Row],[Faktinė ]], "") -> -6.00 EUR
B7: Vonia / dušas | C7: Dušo galvutė, standartinė | D7: 1 | E7: 50.00 EUR | F7: 57.00 EUR | G7: =IFERROR(Išlaidos[[#This Row],[Apytikslė]]-Išlaidos[[#This Row],[Faktinė]], "") -> -7.00 EUR | H7: =IFERROR(Išlaidos[[#This Row],[Kiekis]]*Išlaidos[[#This Row],[Apytikslė]], "") -> 50.00 EUR | I7: =IFERROR(Išlaidos[[#This Row],[Kiekis]]*Išlaidos[[#This Row],[Faktinė]], "") -> 57.00 EUR | J7: =IFERROR(Išlaidos[[#This Row],[Apytikslė ]]-Išlaidos[[#This Row],[Faktinė ]], "") -> -7.00 EUR
B8: Vonia / dušas | C8: Vonios siena, standartinė | D8: 1 | E8: 200.00 EUR | F8: 205.00 EUR | G8: =IFERROR(Išlaidos[[#This Row],[Apytikslė]]-Išlaidos[[#This Row],[Faktinė]], "") -> -5.00 EUR | H8: =IFERROR(Išlaidos[[#This Row],[Kiekis]]*Išlaidos[[#This Row],[Apytikslė]], "") -> 200.00 EUR | I8: =IFERROR(Išlaidos[[#This Row],[Kiekis]]*Išlaidos[[#This Row],[Faktinė]], "") -> 205.00 EUR | J8: =IFERROR(Išlaidos[[#This Row],[Apytikslė ]]-Išlaidos[[#This Row],[Faktinė ]], "") -> -5.00 EUR
B9: Spintelės | C9: Pakabinama spintelė, 61 cm, prabangi | D9: 1 | E9: 200.00 EUR | F9: 211.00 EUR | G9: =IFERROR(Išlaidos[[#This Row],[Apytikslė]]-Išlaidos[[#This Row],[Faktinė]], "") -> -11.00 EUR | H9: =IFERROR(Išlaidos[[#This Row],[Kiekis]]*Išlaidos[[#This Row],[Apytikslė]], "") -> 200.00 EUR | I9: =IFERROR(Išlaidos[[#This Row],[Kiekis]]*Išlaidos[[#This Row],[Faktinė]], "") -> 211.00 EUR | J9: =IFERROR(Išlaidos[[#This Row],[Apytikslė ]]-Išlaidos[[#This Row],[Faktinė ]], "") -> -11.00 EUR
B10: Spintelės | C10: Pastatoma spintelė, 76 cm, standartinė | D10: 2 | E10: 100.00 EUR | F10: 120.00 EUR | G10: =IFERROR(Išlaidos[[#This Row],[Apytikslė]]-Išlaidos[[#This Row],[Faktinė]], "") -> -20.00 EUR | H10: =IFERROR(Išlaidos[[#This Row],[Kiekis]]*Išlaidos[[#This Row],[Apytikslė]], "") -> 200.00 EUR | I10: =IFERROR(Išlaidos[[#This Row],[Kiekis]]*Išlaidos[[#This Row],[Faktinė]], "") -> 240.00 EUR | J10: =IFERROR(Išlaidos[[#This Row],[Apytikslė ]]-Išlaidos[[#This Row],[Faktinė ]], "") -> -40.00 EUR
B11: Stalviršiai | C11: Keraminės plytelės, prabangios (kiekis metrais) | D11: 5 | E11: 22.50 EUR | F11: 33.00 EUR | G11: =IFERROR(Išlaidos[[#This Row],[Apytikslė]]-Išlaidos[[#This Row],[Faktinė]], "") -> -10.50 EUR | H11: =IFERROR(Išlaidos[[#This Row],[Kiekis]]*Išlaidos[[#This Row],[Apytikslė]], "") -> 112.50 EUR | I11: =IFERROR(Išlaidos[[#This Row],[Kiekis]]*Išlaidos[[#This Row],[Faktinė]], "") -> 165.00 EUR | J11: =IFERROR(Išlaidos[[#This Row],[Apytikslė ]]-Išlaidos[[#This Row],[Faktinė ]], "") -> -52.50 EUR
B12: Maišytuvai | C12: Vonios maišytuvas, standartinis | D12: 1 | E12: 90.00 EUR | F12: 92.00 EUR | G12: =IFERROR(Išlaidos[[#This Row],[Apytikslė]]-Išlaidos[[#This Row],[Faktinė]], "") -> -2.00 EUR | H12: =IFERROR(Išlaidos[[#This Row],[Kiekis]]*Išlaidos[[#This Row],[Apytikslė]], "") -> 90.00 EUR | I12: =IFERROR(Išlaidos[[#This Row],[Kiekis]]*Išlaidos[[#This Row],[Faktinė]], "") -> 92.00 EUR | J12: =IFERROR(Išlaidos[[#This Row],[Apytikslė ]]-Išlaidos[[#This Row],[Faktinė ]], "") -> -2.00 EUR
B13: Maišytuvai | C13: Dušo maišytuvas, vienos svirties, standartinis | D13: 1 | E13: 115.00 EUR | F13: 133.00 EUR | G13: =IFERROR(Išlaidos[[#This Row],[Apytikslė]]-Išlaidos[[#This Row],[Faktinė]], "") -> -18.00 EUR | H13: =IFERROR(Išlaidos[[#This Row],[Kiekis]]*Išlaidos[[#This Row],[Apytikslė]], "") -> 115.00 EUR | I13: =IFERROR(Išlaidos[[#This Row],[Kiekis]]*Išlaidos[[#This Row],[Faktinė]], "") -> 133.00 EUR | J13: =IFERROR(Išlaidos[[#This Row],[Apytikslė ]]-Išlaidos[[#This Row],[Faktinė ]], "") -> -18.00 EUR
B14: Maišytuvai | C14: Kriauklės maišytuvas, standartinis | D14: 1 | E14: 95.00 EUR | F14: 110.00 EUR | G14: =IFERROR(Išlaidos[[#This Row],[Apytikslė]]-Išlaidos[[#This Row],[Faktinė]], "") -> -15.00 EUR | H14: =IFERROR(Išlaidos[[#This Row],[Kiekis]]*Išlaidos[[#This Row],[Apytikslė]], "") -> 95.00 EUR | I14: =IFERROR(Išlaidos[[#This Row],[Kiekis]]*Išlaidos[[#This Row],[Faktinė]], "") -> 110.00 EUR | J14: =IFERROR(Išlaidos[[#This Row],[Apytikslė ]]-Išlaidos[[#This Row],[Faktinė ]], "") -> -15.00 EUR
B15: Grindys | C15: Keramikinė plytelė, standartinė (kiekis kvadratiniais metrais) | D15: 35 | E15: 12.00 EUR | F15: 30.00 EUR | G15: =IFERROR(Išlaidos[[#This Row],[Apytikslė]]-Išlaidos[[#This Row],[Faktinė]], "") -> -18.00 EUR | H15: =IFERROR(Išlaidos[[#This Row],[Kiekis]]*Išlaidos[[#This Row],[Apytikslė]], "") -> 420.00 EUR | I15: =IFERROR(Išlaidos[[#This Row],[Kiekis]]*Išlaidos[[#This Row],[Faktinė]], "") -> 1,050.00 EUR | J15: =IFERROR(Išlaidos[[#This Row],[Apytikslė ]]-Išlaidos[[#This Row],[Faktinė ]], "") -> -630.00 EUR
B16: Įrankiai | C16: Rankšluosčio laikiklis, standartinis | D16: 2 | E16: 15.00 EUR | F16: 17.00 EUR | G16: =IFERROR(Išlaidos[[#This Row],[Apytikslė]]-Išlaidos[[#This Row],[Faktinė]], "") -> -2.00 EUR | H16: =IFERROR(Išlaidos[[#This Row],[Kiekis]]*Išlaidos[[#This Row],[Apytikslė]], "") -> 30.00 EUR | I16: =IFERROR(Išlaidos[[#This Row],[Kiekis]]*Išlaidos[[#This Row],[Faktinė]], "") -> 34.00 EUR | J16: =IFERROR(Išlaidos[[#This Row],[Apytikslė ]]-Išlaidos[[#This Row],[Faktinė ]], "") -> -4.00 EUR
B17: Įrankiai | C17: Tualetinio popieriaus laikiklis | D17: 1 | E17: 10.00 EUR | F17: 25.00 EUR | G17: =IFERROR(Išlaidos[[#This Row],[Apytikslė]]-Išlaidos[[#This Row],[Faktinė]], "") -> -15.00 EUR | H17: =IFERROR(Išlaidos[[#This Row],[Kiekis]]*Išlaidos[[#This Row],[Apytikslė]], "") -> 10.00 EUR | I17: =IFERROR(Išlaidos[[#This Row],[Kiekis]]*Išlaidos[[#This Row],[Faktinė]], "") -> 25.00 EUR | J17: =IFERROR(Išlaidos[[#This Row],[Apytikslė ]]-Išlaidos[[#This Row],[Faktinė ]], "") -> -15.00 EUR
B18: Apšvietimas | C18: Įleidžiami šviestuvai, standartiniai | D18: 4 | E18: 25.00 EUR | F18: 45.00 EUR | G18: =IFERROR(Išlaidos[[#This Row],[Apytikslė]]-Išlaidos[[#This Row],[Faktinė]], "") -> -20.00 EUR | H18: =IFERROR(Išlaidos[[#This Row],[Kiekis]]*Išlaidos[[#This Row],[Apytikslė]], "") -> 100.00 EUR | I18: =IFERROR(Išlaidos[[#This Row],[Kiekis]]*Išlaidos[[#This Row],[Faktinė]], "") -> 180.00 EUR | J18: =IFERROR(Išlaidos[[#This Row],[Apytikslė ]]-Išlaidos[[#This Row],[Faktinė ]], "") -> -80.00 EUR
B19: Kriauklės | C19: Klozetas, standartinis | D19: 2 | E19: 60.00 EUR | F19: 78.00 EUR | G19: =IFERROR(Išlaidos[[#This Row],[Apytikslė]]-Išlaidos[[#This Row],[Faktinė]], "") -> -18.00 EUR | H19: =IFERROR(Išlaidos[[#This Row],[Kiekis]]*Išlaidos[[#This Row],[Apytikslė]], "") -> 120.00 EUR | I19: =IFERROR(Išlaidos[[#This Row],[Kiekis]]*Išlaidos[[#This Row],[Faktinė]], "") -> 156.00 EUR | J19: =IFERROR(Išlaidos[[#This Row],[Apytikslė ]]-Išlaidos[[#This Row],[Faktinė ]], "") -> -36.00 EUR
B20: Kita | D20: 1 | E20: 20.00 EUR | F20: 40.00 EUR | G20: =IFERROR(Išlaidos[[#This Row],[Apytikslė]]-Išlaidos[[#This Row],[Faktinė]], "") -> -20.00 EUR | H20: =IFERROR(Išlaidos[[#This Row],[Kiekis]]*Išlaidos[[#This Row],[Apytikslė]], "") -> 20.00 EUR | I20: =IFERROR(Išlaidos[[#This Row],[Kiekis]]*Išlaidos[[#This Row],[Faktinė]], "") -> 40.00 EUR | J20: =IFERROR(Išlaidos[[#This Row],[Apytikslė ]]-Išlaidos[[#This Row],[Faktinė ]], "") -> -20.00 EUR
B21: Tarpinė suma | E21: =SUBTOTAL(109,Išlaidos[Apytikslė]) -> 1,464.50 EUR | F21: =SUBTOTAL(109,Išlaidos[Faktinė]) -> 1,661.00 EUR | G21: =SUBTOTAL(109,Išlaidos[Skirtumas]) -> -196.50 EUR | H21: =SUBTOTAL(109,Išlaidos[[Apytikslė ]]) -> 2,212.50 EUR | I21: =SUBTOTAL(109,Išlaidos[[Faktinė ]]) -> 3,163.00 EUR | J21: =SUBTOTAL(109,Išlaidos[[Skirtumas ]]) -> -950.50 EUR
B22: Nenumatytos išlaidos (pridėti maždaug 30 %) | E22: =IFERROR(Išlaidos[[#Totals],[Apytikslė]]*0.3, "") -> 439.35 EUR | H22: =IFERROR(Išlaidos[[#Totals],[Apytikslė ]]*0.3, "") -> 663.75 EUR
B23: Bendros išlaidos | E23: =IFERROR(SUM(E21:E21), "") -> 1,464.50 EUR | H23: =IFERROR(SUM(Išlaidos[[#Totals],[Apytikslė ]],Perteklius), "") -> 2,876.25 EUR
